fUSD/lending_fUSD_20251217
["ID","MTS","AMOUNT","RATE_DAILY","PERIOD"]
[398899434,1765978241661,-500.0,0.00016438,2]
[398899435,1765978241670,-500.0,0.00016438,2]
[398899436,1765978241680,-166.66,0.00016443,2]
[398899437,1765978241690,-500.0,0.00016469,2]
[398899438,1765978241699,-11178.18600956,0.0001647,2]
[398899439,1765978241709,-955.65,0.00016519,2]
[398899440,1765978241719,-599.97707901,0.00016525,2]
[398899441,1765978241728,-11178.18600956,0.00016614,2]
[398899442,1765978241738,-481.46730423,0.00016719,2]
[398899443,1765978241748,-151.0,0.00016755,2]
[398899444,1765978241758,-11178.18600956,0.00016758,2]
[398899445,1765978241769,-601.93844551,0.00016784,2]
[398899446,1765978241779,-200.0,0.0001679,2]
[398899447,1765978241788,-200.0,0.0001679,2]
[398899448,1765978241798,-500.0,0.0001679,2]
[398899449,1765978241810,-587.0,0.00016791,2]
[398899450,1765978241819,-587.0,0.00016791,2]
[398899451,1765978241829,-494.0,0.00016791,2]
[398899452,1765978241839,-955.65,0.00016793,2]
[398899453,1765978241849,-527.86308134,0.00016824,2]
[398899454,1765978241860,-574.12855637,0.00016855,2]
[398899455,1765978241870,-2112.0,0.00016855,2]
[398899456,1765978241879,-870.55,0.00016891,2]
[398899457,1765978241890,-251.04927788,0.000169,2]
[398899458,1765978241900,-11178.18600956,0.00016902,2]
[398899459,1765978241910,-2351.0,0.00016927,2]
[398899460,1765978241919,-432.0,0.00016943,2]
[398899461,1765978241932,-166.66,0.00016953,2]
[398899462,1765978241943,-151.04833314,0.00016956,2]
[398899463,1765978241952,-500.0,0.00016964,2]
[398899464,1765978241962,-534.56287078,0.00016964,2]
[398899465,1765978241972,-500.0,0.00016973,2]
[398899466,1765978241981,-506.79331904,0.00016973,2]
[398899467,1765978241991,-379.34447673,0.00016973,2]
[398899468,1765978242002,-500.0,0.00016973,2]
[398899469,1765978242023,-300.33484235,0.00016973,2]
[398899470,1765978242033,-500.0,0.00016973,2]
[398899471,1765978242043,-500.0,0.00016973,2]
[398899472,1765978242054,-168.0,0.0001698,2]
[398899473,1765978242064,-503.84,0.00016986,2]
[398899474,1765978242075,-500.0,0.00016986,2]
[398899475,1765978242085,-151.0,0.00016997,2]
[398899476,1765978242095,-487.91144329,0.00016999,2]
[398899477,1765978242106,-401.32110267,0.00016999,2]
[398899478,1765978242116,-500.0,0.00016999,2]
[398899479,1765978242126,-188.38639915,0.00016999,2]
[398899480,1765978242136,-500.0,0.00016999,2]
[398899481,1765978242145,-275.82026527,0.00016999,2]
[398899482,1765978242155,-250.0,0.00017,2]
[398899483,1765978242165,-2923932.38646302,0.00017,2]
[398899492,1765978243839,-28358.10237597,0.00017,2]
[398899493,1765978243850,-1641.97699232,0.00017,2]
[398899494,1765978243861,-304.0,0.00017,2]
[398899495,1765978243872,-500.0,0.00017,2]
[398899496,1765978243997,-2819.91904594,0.00017,2]
[398899497,1765978244008,-1087.32402358,0.00017,2]
[398899498,1765978244019,-10598.03567049,0.00017,2]
[398899499,1765978244030,-8729.85355906,0.00017,2]
[398899500,1765978244042,-756.81463835,0.00017,2]
[398899501,1765978244053,-420.86114321,0.00017,2]
[398899502,1765978244064,-922.18333418,0.00017,2]
[398899503,1765978244075,-500.0,0.00017,2]
[398899504,1765978244094,-2822.67059866,0.00017,2]
[398899505,1765978244106,-1226.15711258,0.00017,2]
[398899506,1765978244130,-473.93335833,0.00017,2]
[398899507,1765978244141,-3391.7295467,0.00017,2]
[398899508,1765978244153,-250.0,0.00017,2]
[398899509,1765978244303,-393.39206397,0.00015594,2]
[398899510,1765978244315,-1797.61271401,0.00015594,2]
[398899511,1765978244333,-2584.11823244,0.00015594,2]
[398899512,1765978244352,-9137.72017839,0.00015594,2]
[398899513,1765978244364,-261.98000005,0.00015594,2]
[398899514,1765978244376,-688.7483796,0.00015594,2]
[398899515,1765978244389,-512.6900035,0.00015594,2]
[398899516,1765978246149,-1103.000005,0.00015594,2]
[398899517,1765978246206,-612.84989598,0.00015594,2]
[398899518,1765978246217,-327.410967,0.00015594,2]
[398899519,1765978246263,-379.12940536,0.00015594,2]
[398899520,1765978246428,-657.92929977,0.00015594,2]
[398899521,1765978246440,-2536.12202094,0.00015594,2]
[398899526,1765978381234,940.64,7.807e-05,2]
[398899527,1765978381457,940.64,8.217e-05,2]
[398899528,1765978381708,940.64,8.628e-05,2]
[398899529,1765978381962,940.64,9.039e-05,2]
[398899530,1765978383661,940.64,9.45e-05,2]
[398899531,1765978383705,940.64,9.861e-05,2]
[398899532,1765978383746,940.64,0.00010272,2]
[398899533,1765978383782,940.64,0.00010683,2]
[398899534,1765978383830,940.64,0.00011094,2]
[398899535,1765978383883,940.64,0.00011504,2]
[398899536,1765978387415,-940.64,0.00011915,2]
[398899539,1765978465637,279.50214594,9.861e-05,2]
[398899540,1765978465688,4048.56264106,9.861e-05,2]
[398899541,1765978465730,898.08433789,9.861e-05,2]
[398899545,1765978516783,1492.22387248,0.00014175,7]
[398899548,1765978523206,298.44477449,0.00014175,7]
[398899744,1765979159383,775.95641369,0.00014175,7]
[398899775,1765979375343,430.44754735,0.00022,30]
[398899785,1765979432257,-940.64,0.00012326,2]
[398899786,1765979432267,-195.0,0.00012532,2]
[398899787,1765979432277,-95.56141571,0.00012737,2]
[398899788,1765979432288,-845.07858429,0.00012737,2]
[398899789,1765979432297,-552.98048024,0.00013148,2]
[398899790,1765979432309,-387.65951976,0.00013148,2]
[398899791,1765979432319,-300.0,0.00013556,2]
[398899792,1765979432328,-510.69513292,0.00013556,2]
[398899793,1765979432339,-689.30486708,0.00013556,2]
[398899794,1765979432348,-300.0,0.00013557,2]
[398899795,1765979432358,-1200.0,0.00013557,2]
[398899796,1765979432368,-193.58152685,0.00013559,2]
[398899797,1765979432378,-346.7483301,0.00013559,2]
[398899798,1765979432387,-195.0,0.00013559,2]
[398899799,1765979432396,-940.64,0.00013559,2]
[398899800,1765979432405,-475.87945597,0.00013699,2]
[398899801,1765979432416,-129.17054403,0.00013699,2]
[398899802,1765979432426,-166.66,0.00013699,2]
[398899803,1765979432435,-150.0,0.00013942,2]
[398899804,1765979432444,-200.0,0.00013943,2]
[398899806,1765979432453,-156.15208613,0.00013943,2]
[398899808,1765979432465,-343.84791387,0.00013943,2]
[398899810,1765979432474,-151.0,0.00013943,2]
[398899811,1765979432484,-500.0,0.00013943,2]
[398899812,1765979432493,-151.0,0.00013943,2]
[398899813,1765979432502,-500.0,0.00013943,2]
[398899814,1765979432511,-151.0,0.00013943,2]
[398899815,1765979432520,-500.0,0.00013943,2]
[398899817,1765979432529,-22.73766305,0.00013943,2]
[398899820,1765979432541,-458.86841978,0.00013943,2]
[398899823,1765979432552,-18.39391717,0.00013943,2]
[398899825,1765979432561,-151.0,0.00013943,2]
[398899827,1765979432570,-500.0,0.00013943,2]
[398899829,1765979432579,-42.7116466,0.00013943,2]
[398899831,1765979432590,-157.2883534,0.00013943,2]
[398899833,1765979432599,-500.0,0.00013943,2]
[398899835,1765979432608,-141.9216466,0.00013943,2]
[398899838,1765979432625,-9.0783534,0.00013943,2]
[398899840,1765979432634,-500.0,0.00013943,2]
[398899842,1765979432643,-366.81092017,0.00013943,2]
[398899844,1765979432654,-133.18907983,0.00013943,2]
[398899846,1765979432663,-151.0,0.00013943,2]
[398899848,1765979432673,-500.0,0.00013943,2]
[398899850,1765979432682,-500.0,0.00013943,2]
[398899851,1765979432691,-151.0,0.00013943,2]
[398899852,1765979432700,-500.0,0.00013943,2]
[398899853,1765979432709,-500.0,0.00013943,2]
[398899854,1765979432717,-151.0,0.00013943,2]
[398899855,1765979432727,-500.0,0.00013943,2]
[398899856,1765979432736,-151.0,0.00013943,2]
[398899857,1765979432745,-500.0,0.00013943,2]
[398899858,1765979432754,-500.0,0.00013943,2]
[398899859,1765979432763,-151.0,0.00013943,2]
[398899860,1765979432773,-151.0,0.00013943,2]
[398899861,1765979432782,-500.0,0.00013943,2]
[398899862,1765979432791,-500.0,0.00013943,2]
[398899863,1765979432800,-151.0,0.00013943,2]
[398899864,1765979432809,-151.0,0.00013943,2]
[398899865,1765979432818,-500.0,0.00013943,2]
[398899866,1765979432827,-500.0,0.00013943,2]
[398899867,1765979432837,-151.0,0.00013943,2]
[398899868,1765979432846,-151.0,0.00013943,2]
[398899869,1765979432854,-500.0,0.00013943,2]
[398899870,1765979432865,-151.0,0.00013943,2]
[398899871,1765979432874,-500.0,0.00013943,2]
[398899872,1765979432883,-151.0,0.00013943,2]
[398899873,1765979432893,-291.8725158,0.00013943,2]
[398899874,1765979432906,-151.0,0.00013943,2]
[398899875,1765979432915,-151.0,0.00013943,2]
[398899876,1765979432924,-200.0,0.00013943,2]
[398899877,1765979432934,-151.0,0.00013943,2]
[398899878,1765979432945,-151.0,0.00013943,2]
[398899879,1765979432954,-151.0,0.00013943,2]
[398899880,1765979432963,-153.63110906,0.00013943,2]
[398899881,1765979432972,-500.0,0.00013943,2]
[398899882,1765979432982,-955.65,0.00013943,2]
[398899883,1765979432991,-500.0,0.00013943,2]
[398899884,1765979432999,-4001.0,0.00013951,2]
[398899885,1765979433008,-940.64,0.0001397,2]
[398899886,1765979433018,-166.66,0.0001397,2]
[398899887,1765979433027,-500.0,0.00014217,2]
[398899888,1765979433036,-955.65,0.00014217,2]
[398899889,1765979433045,-166.66,0.00014241,2]
[398899890,1765979433054,-229.44,0.00014338,2]
[398899891,1765979433064,-226.0,0.00014362,2]
[398899892,1765979433073,-940.64,0.00014381,2]
[398899893,1765979433082,-1000.0,0.00014433,2]
[398899894,1765979433091,-881.0,0.00014439,2]
[398899895,1765979433100,-159.0,0.00014439,2]
[398899896,1765979433109,-488.0,0.00014463,2]
[398899897,1765979433118,-280.0,0.00014463,2]
[398899898,1765979433127,-200.0,0.00014491,2]
[398899899,1765979433137,-200.0,0.00014491,2]
[398899900,1765979433146,-500.0,0.00014491,2]
[398899901,1765979433156,-500.0,0.00014491,2]
[398899902,1765979433165,-955.65,0.00014491,2]
[398899903,1765979433175,-250.0,0.00014508,2]
[398899904,1765979433184,-166.66,0.00014513,2]
[398899905,1765979433193,-599.97707901,0.00014765,2]
[398899906,1765979433203,-955.65,0.00014765,2]
[398899907,1765979433212,-166.66,0.00014784,2]
[398899908,1765979433222,-940.64,0.00014791,2]
[398899909,1765979433231,-420.0,0.00014858,2]
[398899910,1765979433240,-420.0,0.00014859,2]
[398899911,1765979433250,-1680.0,0.00014912,2]
[398899912,1765979433260,-200.0,0.00015039,2]
[398899913,1765979433269,-200.0,0.00015039,2]
[398899914,1765979433278,-500.0,0.00015039,2]
[398899915,1765979433288,-955.65,0.00015039,2]
[398899916,1765979433297,-4695.46366483,0.00015048,2]
[398899917,1765979433308,-1000.0,0.00015049,2]
[398899918,1765979433317,-80554.25944447,0.0001505,2]
[398899919,1765979433327,-166.66,0.00015055,2]
[398899920,1765979433336,-255.0,0.00015057,2]
[398899921,1765979433347,-940.64,0.00015202,2]
[398899922,1765979433357,-234.96503369,0.00015288,2]
[398899923,1765979433368,-150.0,0.00015288,2]
[398899924,1765979433378,-150.0,0.00015288,2]
[398899925,1765979433387,-150.0,0.00015288,2]
[398899926,1765979433397,-150.0,0.00015288,2]
[398899927,1765979433406,-150.0,0.00015288,2]
[398899928,1765979433416,-150.0,0.00015288,2]
[398899929,1765979433426,-150.0,0.00015288,2]
[398899930,1765979433435,-150.0,0.00015288,2]
[398899931,1765979433445,-150.0,0.00015288,2]
[398899932,1765979433455,-150.99,0.0001531,2]
[398899933,1765979433464,-17457.03,0.0001531,2]
[398899934,1765979433474,-9999.99,0.0001531,2]
[398899935,1765979433483,-11780.94716359,0.00015313,2]
[398899936,1765979433492,-955.65,0.00015313,2]
[398899937,1765979433502,-601.93844556,0.00015471,2]
[398899938,1765979433511,-480.41617822,0.00015471,2]
[398899939,1765979433521,-11780.94716351,0.00015489,2]
[398899940,1765979433530,-282.1774,0.00015494,2]
[398899941,1765979433540,-150.0,0.000155,2]
[398899942,1765979433550,-10052.95567102,0.000155,2]
[398899943,1765979433560,-151.0,0.00015503,2]
[398899944,1765979433569,-151.0,0.00015503,2]
[398899945,1765979433578,-1000.0,0.00015504,2]
[398899946,1765979433588,-1000.0,0.00015504,2]
[398899947,1765979433597,-1000.0,0.00015504,2]
[398899948,1765979433606,-1000.0,0.00015504,2]
[398899949,1765979433617,-1000.0,0.00015504,2]
[398899950,1765979433626,-1000.0,0.00015504,2]
[398899951,1765979433636,-1000.0,0.00015504,2]
[398899952,1765979433647,-1000.0,0.00015504,2]
[398899953,1765979433657,-1000.0,0.00015504,2]
[398899954,1765979433667,-1000.0,0.00015504,2]
[398899955,1765979433680,-225.73772161,0.00015504,2]
[398899956,1765979433689,-500.0,0.00015504,2]
[398899957,1765979433699,-500.0,0.00015504,2]
[398899958,1765979433708,-500.0,0.00015505,2]
[398899959,1765979433717,-500.0,0.00015505,2]
[398899960,1765979433726,-500.0,0.00015505,2]
[398899961,1765979433735,-500.0,0.00015505,2]
[398899962,1765979433744,-500.0,0.00015505,2]
[398899963,1765979433754,-500.0,0.00015505,2]
[398899964,1765979433763,-250.23576519,0.00015505,2]
[398899965,1765979433772,-500.0,0.00015505,2]
[398899966,1765979433782,-500.0,0.00015505,2]
[398899967,1765979433791,-500.0,0.00015505,2]
[398899968,1765979433801,-500.0,0.00015505,2]
[398899969,1765979433811,-500.0,0.00015505,2]
[398899970,1765979433820,-500.0,0.00015505,2]
[398899971,1765979433830,-500.0,0.00015505,2]
[398899972,1765979433840,-208.55442295,0.00015505,2]
[398899973,1765979433849,-500.0,0.00015505,2]
[398899974,1765979433861,-500.0,0.00015505,2]
[398899975,1765979433870,-500.0,0.00015505,2]
[398899976,1765979433880,-500.0,0.00015505,2]
[398899977,1765979433889,-500.0,0.00015505,2]
[398899978,1765979433900,-500.0,0.00015505,2]
[398899979,1765979433911,-500.0,0.00015505,2]
[398899980,1765979433920,-500.0,0.00015505,2]
[398899981,1765979433929,-500.0,0.00015505,2]
[398899982,1765979433941,-503.9543882,0.00015505,2]
[398899983,1765979433951,-500.0,0.00015505,2]
[398899984,1765979433961,-514.77254056,0.00015505,2]
[398899985,1765979433970,-500.0,0.00015505,2]
[398899986,1765979433981,-500.0,0.00015505,2]
[398899987,1765979433991,-500.0,0.00015505,3]
[398899988,1765979434000,-500.0,0.00015505,4]
[398899989,1765979434010,-500.0,0.00015505,2]
[398899990,1765979434020,-500.0,0.00015505,2]
[398899991,1765979434029,-500.0,0.00015505,2]
[398899992,1765979434038,-500.0,0.00015505,2]
[398899993,1765979434047,-500.0,0.00015505,2]
[398899994,1765979434057,-500.0,0.00015505,2]
[398899995,1765979434067,-500.0,0.00015505,2]
[398899996,1765979434077,-500.0,0.00015505,2]
[398899997,1765979434086,-500.0,0.00015505,2]
[398899998,1765979434095,-500.0,0.00015505,2]
[398899999,1765979434104,-500.0,0.00015505,2]
[398900000,1765979434115,-500.0,0.00015505,2]
[398900001,1765979434125,-500.0,0.00015505,2]
[398900002,1765979434134,-500.0,0.00015505,2]
[398900003,1765979434143,-500.0,0.00015505,2]
[398900004,1765979434153,-500.0,0.00015505,2]
[398900005,1765979434163,-500.0,0.00015505,2]
[398900006,1765979434172,-500.0,0.00015505,2]
[398900007,1765979434182,-500.0,0.00015505,2]
[398900008,1765979434191,-500.0,0.00015505,2]
[398900009,1765979434200,-500.0,0.00015505,2]
[398900010,1765979434209,-500.0,0.00015505,2]
[398900011,1765979434218,-500.0,0.00015505,2]
[398900012,1765979434227,-500.0,0.00015505,2]
[398900013,1765979434236,-500.0,0.00015505,2]
[398900014,1765979434246,-500.0,0.00015505,2]
[398900015,1765979434256,-500.0,0.00015505,2]
[398900016,1765979434266,-500.0,0.00015505,2]
[398900017,1765979434275,-500.0,0.00015505,2]
[398900018,1765979434284,-500.0,0.00015505,2]
[398900019,1765979434294,-500.0,0.00015505,2]
[398900020,1765979434303,-500.0,0.00015505,2]
[398900021,1765979434312,-500.0,0.00015505,2]
[398900022,1765979434322,-500.0,0.00015505,2]
[398900023,1765979434331,-500.0,0.00015505,2]
[398900024,1765979434341,-162.01371357,0.00015505,2]
[398900025,1765979434350,-500.0,0.00015505,2]
[398900026,1765979434362,-500.0,0.00015505,2]
[398900027,1765979434372,-500.0,0.00015505,2]
[398900028,1765979434382,-500.0,0.00015505,2]
[398900029,1765979434392,-500.0,0.00015505,2]
[398900030,1765979434402,-500.0,0.00015505,2]
[398900031,1765979434411,-500.0,0.00015505,2]
[398900032,1765979434420,-500.0,0.00015505,2]
[398900033,1765979434430,-500.0,0.00015505,2]
[398900034,1765979434439,-500.0,0.00015505,2]
[398900035,1765979434448,-500.0,0.00015505,2]
[398900036,1765979434458,-500.0,0.00015505,2]
[398900037,1765979434467,-500.0,0.00015505,2]
[398900038,1765979434476,-500.0,0.00015505,2]
[398900039,1765979434486,-500.0,0.00015505,2]
[398900040,1765979434495,-500.0,0.00015505,2]
[398900041,1765979434504,-500.0,0.00015505,2]
[398900042,1765979434513,-500.0,0.00015505,2]
[398900043,1765979434523,-550.0,0.00015505,2]
[398900044,1765979434532,-500.0,0.00015505,2]
[398900045,1765979434541,-500.0,0.00015505,2]
[398900046,1765979434550,-500.0,0.00015505,2]
[398900047,1765979434560,-500.0,0.00015505,2]
[398900048,1765979434569,-150.0,0.00015571,2]
[398900049,1765979434578,-200.0,0.00015587,2]
[398900050,1765979434588,-500.0,0.00015587,2]
[398900051,1765979434598,-955.65,0.00015587,2]
[398900052,1765979434607,-940.64,0.00015613,2]
[398900053,1765979434618,-11780.94716351,0.00015666,2]
[398900054,1765979434628,-480.41617822,0.00015695,2]
[398900055,1765979434638,-500.0,0.00015703,2]
[398900056,1765979434647,-500.0,0.00015703,2]
[398900057,1765979434656,-500.0,0.00015703,2]
[398900058,1765979434665,-150.0,0.00015712,2]
[398900059,1765979434675,-11780.94716351,0.00015842,2]
[398900060,1765979434684,-150.0,0.00015854,2]
[398900061,1765979434693,-150.0,0.00015854,2]
[398900062,1765979434703,-150.0,0.00015854,2]
[398900063,1765979434712,-150.0,0.00015854,2]
[398900064,1765979434721,-150.0,0.00015854,2]
[398900065,1765979434730,-955.68662645,0.00015861,2]
[398900066,1765979434739,-721.0,0.0001589,2]
[398900067,1765979434749,-721.0,0.0001589,2]
[398900068,1765979434758,-721.0,0.0001589,2]
[398900069,1765979434767,-2590.98,0.00015899,2]
[398900070,1765979434776,-940.32305857,0.000159,2]
[398900071,1765979434786,-480.41617822,0.00015918,2]
[398900072,1765979434795,-150.0,0.00015925,2]
[398900073,1765979434804,-2590.98,0.0001599,2]
[398900074,1765979434814,-2590.98,0.0001599,2]
[398900075,1765979434823,-2590.98,0.0001599,2]
[398900076,1765979434832,-500.0,0.00015999,2]
[398900077,1765979434842,-500.0,0.00015999,2]
[398900078,1765979434852,-500.0,0.00015999,2]
[398900079,1765979434863,-23825.37363233,0.00016,2]
[398900080,1765979434907,-781.98694337,0.00016,2]
[398900081,1765979434919,-2802.53813324,0.00016,2]
[398900084,1765979439469,-500.0,0.00015504,2]
[398900085,1765979439479,-500.0,0.00015504,2]
[398900086,1765979439491,-419.075,0.00015504,2]
[398900087,1765979439502,-80.925,0.00015504,2]
[398900088,1765979439511,-500.0,0.00015504,2]
[398900089,1765979439520,-473.25314014,0.00015504,2]
[398900090,1765979439531,-26.74685986,0.00015504,2]
[398900091,1765979439541,-500.0,0.00015504,2]
[398900092,1765979439550,-500.0,0.00015504,2]
[398900093,1765979439559,-500.0,0.00015504,2]
[398900094,1765979439569,-224326.74825534,0.00016,2]
[398900095,1765979439580,-4469.34245051,0.00016,2]
[398900096,1765979439591,-2802.14483546,0.00016,2]
[398900097,1765979439629,-10756.77435356,0.00016,2]
[398900098,1765979439638,-11780.94716351,0.00016018,2]
[398900099,1765979439647,-2590.98,0.00016064,2]
[398900100,1765979439656,-9999.99,0.00016116,2]
[398900101,1765979439666,-200.0,0.00016135,2]
[398900102,1765979439675,-150.0,0.00016137,2]
[398900103,1765979439684,-150.0,0.00016137,2]
[398900104,1765979439694,-11780.94716351,0.00016195,2]
[398900105,1765979439703,-1000.0,0.00016237,2]
[398900106,1765979439712,-433.0,0.00016256,2]
[398900107,1765979439721,-587.0,0.00016285,2]
[398900108,1765979439730,-494.0,0.00016286,2]
[398900109,1765979439739,-150.0,0.00016349,2]
[398900110,1765979439749,-11780.94716351,0.00016371,2]
[398900111,1765979439758,-2351.0,0.00016403,2]
[398900112,1765979439767,-150.0,0.0001642,2]
[398900113,1765979439776,-150.0,0.0001642,2]
[398900114,1765979439785,-150.0,0.0001642,2]
[398900115,1765979439794,-150.0,0.0001642,2]
[398900116,1765979439803,-150.0,0.0001642,2]
[398900117,1765979439812,-151.0,0.00016435,2]
[398900118,1765979439821,-300.0,0.00016438,2]
[398900119,1765979439830,-300.0,0.00016438,2]
[398900120,1765979439839,-300.0,0.00016438,2]
[398900121,1765979439848,-300.0,0.00016438,2]
[398900122,1765979439858,-300.0,0.00016438,2]
[398900123,1765979439867,-300.0,0.00016438,2]
[398900124,1765979439877,-300.0,0.00016438,2]
[398900128,1765979440241,-300.0,0.00016438,2]
[398900129,1765979440256,-300.0,0.00016438,2]
[398900130,1765979440265,-300.0,0.00016438,2]
[398900132,1765979440274,-300.0,0.00016438,2]
[398900134,1765979440284,-300.0,0.00016438,2]
[398900136,1765979440294,-300.0,0.00016438,2]
[398900138,1765979440303,-300.0,0.00016438,2]
[398900140,1765979440312,-300.0,0.00016438,2]
[398900141,1765979440321,-300.0,0.00016438,2]
[398900142,1765979440331,-300.0,0.00016438,2]
[398900143,1765979440340,-300.0,0.00016438,2]
[398900144,1765979440349,-300.0,0.00016438,2]
[398900145,1765979440359,-300.0,0.00016438,2]
[398900146,1765979440368,-300.0,0.00016438,2]
[398900147,1765979440377,-300.0,0.00016438,2]
[398900148,1765979440387,-197.26900433,0.00016438,2]
[398900149,1765979440396,-500.0,0.00016438,2]
[398900150,1765979440406,-500.0,0.00016438,2]
[398900151,1765979440414,-500.0,0.00016438,2]
[398900152,1765979440423,-500.0,0.00016438,2]
[398900153,1765979440433,-500.0,0.00016438,2]
[398900154,1765979440442,-500.0,0.00016438,2]
[398900155,1765979440451,-13231.46,0.00016438,2]
[398900156,1765979440460,-487.91144329,0.00016499,2]
[398900157,1765979440469,-543.74,0.00016499,2]
[398900158,1765979440479,-412824.73982358,0.000165,2]
[398900159,1765979440488,-601.93844551,0.00016529,2]
[398900160,1765979440497,-11780.94716351,0.00016547,2]
[398900161,1765979440507,-261.19721547,0.0001656,2]
[398900162,1765979440516,-150.0,0.00016562,2]
[398900163,1765979440525,-200.0,0.00016682,2]
[398900164,1765979440534,-150.0,0.00016703,2]
[398900165,1765979440543,-11780.94716351,0.00016724,2]
[398900166,1765979440552,-481.46730423,0.00016765,2]
[398900167,1765979440562,-150.0,0.00016774,2]
[398900168,1765979440571,-300.0,0.00016782,2]
[398900169,1765979440580,-151.0,0.00016782,2]
[398900170,1765979440589,-250.0,0.00016782,2]
[398900171,1765979440599,-613.91086761,0.00016782,2]
[398900172,1765979440608,-1000.0,0.00016782,2]
[398900173,1765979440617,-1000.0,0.00016782,2]
[398900174,1765979440626,-1000.0,0.00016782,2]
[398900175,1765979440636,-1000.0,0.00016782,2]
[398900176,1765979440645,-1000.0,0.00016782,2]
[398900177,1765979440655,-553.64373807,0.00016782,2]
[398900178,1765979440664,-500.0,0.00016782,2]
[398900179,1765979440673,-500.0,0.00016782,2]
[398900180,1765979440682,-571.16053015,0.00016782,2]
[398900181,1765979440691,-200.0,0.00016782,2]
[398900182,1765979440701,-176.36040712,0.00016782,2]
[398900183,1765979440710,-1000.0,0.00016782,2]
[398900184,1765979440719,-1000.0,0.00016782,2]
[398900185,1765979440728,-332.07048365,0.00016782,2]
[398900186,1765979440737,-500.0,0.00016782,2]
[398900187,1765979440746,-509.33088401,0.00016782,2]
[398900188,1765979440755,-620.0,0.00016782,2]
[398900189,1765979440764,-2112.0,0.00016782,2]
[398900190,1765979440773,-1042.92874462,0.000168,2]
[398900191,1765979440782,-168.0,0.00016877,2]
[398900192,1765979440791,-151.0,0.00016897,2]
[398900193,1765979440800,-10000.0,0.000169,2]
[398900194,1765979440810,-12378.33331697,0.000169,2]
[398900195,1765979440820,-11780.94716351,0.000169,2]
[398900197,1765979440829,-2855.15191448,0.000169,2]
[398900199,1765979440839,-2055.4288943,0.000169,2]
[398900201,1765979440848,-426.45410676,0.000169,2]
[398900204,1765979440858,-784.8449496,0.000169,2]
[398900206,1765979440867,-194.25120825,0.000169,2]
[398900208,1765979440876,-151.12198165,0.00016967,2]
[398900210,1765979440886,-506.79331904,0.00016973,2]
[398900212,1765979440898,-500.0,0.00016973,2]
[398900214,1765979440907,-379.34447673,0.00016973,2]
[398900216,1765979440916,-500.0,0.00016973,2]
[398900218,1765979440926,-500.0,0.00016973,2]
[398900220,1765979440935,-500.0,0.00016973,2]
[398900221,1765979440944,-500.0,0.00016973,2]
[398900222,1765979440953,-300.33484235,0.00016973,2]
[398900223,1765979440962,-500.0,0.00016973,2]
[398900225,1765979440972,-503.84,0.00016986,2]
[398900227,1765979440981,-2494.726,0.00016986,2]
[398900229,1765979440992,-150.0,0.00016986,2]
[398900231,1765979441001,-187.73749217,0.00016986,2]
[398900233,1765979441010,-196.84735632,0.00016986,2]
[398900235,1765979441019,-150.0,0.00016986,2]
[398900237,1765979441028,-250.72416972,0.00016986,2]
[398900239,1765979441037,-150.0,0.00016986,2]